Cogmind - Beta 16.1 @@@ ROGUE MODE // 2026.03.09 @ 13:37:03 Player: halo Result: Destroyed by S-10 Pest with Light Assault Rifle Performance ------------- Evolutions (2) 1000 Regions Visited (4) 800 Robots Destroyed (40) 200 Value Destroyed (884) 884 Prototype IDs (2) 40 Alien Tech Used (0) 0 Bonus (0) 0 TOTAL SCORE: 2924 Bonus ------- None Cogmind --------- Core Integrity 0/550 Matter 300/300 Energy 83/100 System Corruption 0% Temperature Cool (0) Movement Core (100) Ox1 Location -8/Materials Parts ------- > --- POWER (2) -------- (None) > --- PROPULSION (2) --- (None) > --- UTILITY (4) ------ (None) > --- WEAPON (3) ------- Katana Katana > --- INVENTORY (5) ---- Hardlight Generator Hammer Peak State ------------ > --- POWER ------------ Improved Ion Engine Cooled Ion Engine > --- PROPULSION ------- Aluminum Leg Aluminum Leg > --- UTILITY ---------- Experimental Sensor Array ECM Suite Light Armor Plating Light Armor Plating > --- WEAPON ----------- Medium Laser Beam Rifle Hammer > --- INVENTORY -------- Aluminum Leg Heat Sink Visual Processing Unit Medium Laser [Rating: 23] Favorites ----------- Power Cooled Ion Engine Engine Cooled Ion Engine Propulsion Aluminum Leg Leg Aluminum Leg Wheel Wheel Utility Light Armor Plating Device ECM Suite Storage Small Storage Unit Processor Visual Processing Unit Protection Light Armor Plating Weapon Medium Laser Energy Gun Medium Laser Ballistic Gun Light Assault Rifle Launcher Grenade Launcher Special Weapon Mining Laser Impact Weapon Hammer Slashing Weapon Katana Build | -11 -10 -9 -9 -8 ------- Run | Yrd Mat Mat Min Mat Slots Evolved 4 | . . 2 . 2 Power 1 | . . . . 1 Propulsion . | . . . . . Utility 2 | . . 1 . 1 Weapon 1 | . . 1 . . Parts Attached 30 | 6 1 7 1 15 Power 4 | 1 . 1 . 2 Engine 4 | 1 . 1 . 2 Core . | . . . . . Reactor . | . . . . . Propulsion 5 | 2 . 1 . 2 Treads . | . . . . . Leg 4 | 2 . 1 . 1 Wheel 1 | . . . . 1 Hover . | . . . . . Flight . | . . . . . Utility 10 | 1 . 2 1 6 Device 6 | . . . 1 5 Storage 1 | 1 . . . . Processor 1 | . . . . 1 Hackware . | . . . . . Protection 2 | . . 2 . . Artifact . | . . . . . Weapon 11 | 2 1 3 . 5 Energy Gun 4 | 2 . 1 . 1 Energy Cannon . | . . . . . Ballistic Gun 1 | . . . . 1 Ballistic Cannon . | . . . . . Launcher 1 | . 1 . . . Special Weapon 1 | . . 1 . . Impact Weapon 1 | . . 1 . . Slashing Weapon 3 | . . . . 3 Piercing Weapon . | . . . . . Special Melee Weapon . | . . . . . Unidentified Prototypes 2 | . . 1 1 . Parts Lost 22 | . . 2 . 20 Power 3 | . . . . 3 Propulsion 4 | . . . . 4 Utility 9 | . . . . 9 Weapon 6 | . . 2 . 4 Highest Loss Streak 9 | . . 1 . 9 To Critical Strikes . | . . . . . Average Backups 2 | 1 2 3 4 1 Power . | . 1 1 1 . Propulsion . | . . . 1 . Utility 1 | . . 1 2 . Weapon . | . 1 . . . Tool/Special . | . . . . . Unused Backups 6 | . 1 3 . 2 Power 2 | . . 2 . . Propulsion . | . . . . . Utility 4 | . 1 1 . 2 Weapon . | . . . . . Tool/Special . | . . . . . Average Slot Usage (%) 90 | . 95 95 100 76 Engine 10 | . 14 11 11 6 Leg 20 | . 28 22 22 13 Device 6 | . . . 3 22 Storage 7 | . 14 11 7 . Processor 1 | . . . . 5 Protection 14 | . 9 20 22 4 Energy Gun 15 | . 15 20 22 5 Launcher 3 | . 12 4 . . Special Weapon 1 | . . 3 . . Impact Weapon 4 | . . 2 11 7 Slashing Weapon 1 | . . . . 5 Peak Build Rating 23 | 6 7 11 19 23 Average Rating 11 | 3 6 10 13 16 On Entrance 8 | . 6 7 11 19 Avg Prop Armor Cover (%) 14 | . . . . 14 Naked Turns . | . . . . . Heaviest Build 33 | 13 16 25 25 33 Greatest Support 20 | 20 20 20 20 20 Greatest Overweight (x) 3 | . . 1 1 3 Average Overweight (x) . | . . . 1 . Largest Inventory Capacity 8 | 8 8 8 8 5 Average Capacity 6 | 6 8 8 6 5 Most Carried 6 | 5 4 6 5 4 Average Carried 2 | 1 2 3 4 1 Final Capacity 8 | 8 8 8 5 5 Final Carried 4 | 1 3 4 4 2 Class Distribution -------------------- 42% | Scavenger-Mutant 33% | Mutant 23% | Tank Dominant Class ---------------- Mutant | -10/Materials Tank | -9/Materials Scavenger-Mutant | -9/Mines Scavenger-Mutant | -8/Materials Resources | -11 -10 -9 -9 -8 ----------- Run | Yrd Mat Mat Min Mat Matter Collected 676 | 200 102 193 20 161 Remotely . | . . . . . Salvage Created 957 | . 48 309 36 564 Parts 69 | . 13 21 7 28 Haulers Intercepted . | . . . . . Recyclers Shooed . | . . . . . Parts Field Recycled . | . . . . . Retrieved Matter . | . . . . . Parts Self-Destructed . | . . . . . Prevented . | . . . . . Parts Restored . | . . . . . Kills | -11 -10 -9 -9 -8 ------- Run | Yrd Mat Mat Min Mat Combat Hostiles Destroyed 30 | . . 11 3 16 Melee 9 | . . . . 9 Guns 15 | . . 6 3 6 AOE 5 | . . 5 . . Classes Destroyed 7 | . 3 4 . . Worker 4 | . 1 2 . 1 Builder 3 | . 3 . . . Watcher 3 | . 1 1 . 1 Swarmer 15 | . . 4 3 8 Grunt 9 | . . 3 . 6 Brawler 1 | . . 1 . . Sentry 5 | . . 3 . 2 Best Kill Streak 8 | . 3 8 3 7 Combat Bots Only 6 | . . 6 3 6 Max Kills in Single Turn 2 | . 2 2 1 1 Gunslinging . | . . . . . Exploded 2 | . . 2 . . Melee 1 | . . . . 1 Uniques/NPCs Destroyed . | . . . . . Combat | -11 -10 -9 -9 -8 -------- Run | Yrd Mat Mat Min Mat Hostile Shots Fired 259 | . . 65 8 186 Missed 67 | . . 26 1 40 Hits 192 | . . 39 7 146 Melee 1 | . . 1 . . Projectile 191 | . . 38 7 146 Critical Strikes 7 | . . 2 . 5 Damage Taken 2230 | . 36 448 48 1698 Core 622 | . 12 60 . 550 Absorbed by Shields . | . . . . . Regen/Repaired (Parts) 66 | . . 66 . . Core Remaining (%) 93 | 100 95 . 85 . Volleys Fired 77 | . 6 29 4 38 Largest 3 | . 2 3 2 2 Hottest 200 | . 80 200 100 106 Shots Fired 110 | . 7 48 8 47 Gun 93 | . 2 36 8 47 Cannon . | . . . . . Launcher 15 | . 5 10 . . Special 2 | . . 2 . . Kinetic 29 | . . . . 29 Thermal 66 | . 2 38 8 18 Explosive 15 | . 5 10 . . Electromagnetic . | . . . . . Robot Hit Streak 16 | . 1 8 3 16 Robot Miss Streak 8 | . 3 6 5 8 Penetration Max . | . . . . . Secondary Targets 1 | . . . . 1 Max Gunslinging Chain 1 | . . . . 1 Shots Hit Robots 85 | . 1 19 5 60 Core Hits 65 | . 12 27 3 23 Critical Kills 1 | . . . . 1 Critical Parts Destroyed 5 | . . . . 5 Critical Strikes 8 | . . . . 8 Burn 1 | . . . . 1 Destroy 1 | . . . . 1 Smash 5 | . . . . 5 Sever 1 | . . . . 1 Melee Attacks 42 | . . 1 1 40 Impact 27 | . . 1 1 25 Slashing 15 | . . . . 15 Piercing . | . . . . . Sneak Attacks 1 | . . . . 1 Combat Hostiles . | . . . . . Follow-up Attacks 4 | . . . . 4 Damage Inflicted 1973 | . 196 572 61 1144 Guns 605 | . 13 240 61 291 Cannons . | . . . . . Explosions 515 | . 183 332 . . Melee 853 | . . . . 853 Ramming . | . . . . . Kinetic 149 | . . . . 149 Thermal 456 | . 13 240 61 142 Explosive 515 | . 183 332 . . Electromagnetic . | . . . . . Impact 506 | . . . . 506 Slashing 347 | . . . . 347 Piercing . | . . . . . Highest Corruption . | . . . . . Average Corruption . | . . . . . Corruption Purged . | . . . . . Corruption Blocked . | . . . . . Overload Shots . | . . . . . Overflow Damage 177 | . . 6 . 171 Projectiles . | . . . . . Explosions 6 | . . 6 . . Melee 171 | . . . . 171 Knockbacks 2 | . . . . 2 Impact 2 | . . . . 2 Kinetic . | . . . . . Secondary . | . . . . . Self-Inflicted Damage 47 | . 36 11 . . Shots 2 | . 1 1 . . Rammed . | . . . . . Targets Rammed 1 | . . 1 . . Kicked 1 | . . 1 . . Crushed . | . . . . . Highest Temperature 517 | . 21 372 132 517 Average Temperature 133 | . 9 100 67 234 Received Heat Transfer 792 | . . 162 . 630 Effects 4 | . . . . 4 Shutdowns 1 | . . . . 1 Matter Decay 1 | . . . . 1 Short Circuit 1 | . . . . 1 Damage (minor) 1 | . . . . 1 Siege Activations . | . . . . . Martial Activations . | . . . . . Shielding Activations . | . . . . . Robots Disrupted . | . . . . . Combat Hostiles . | . . . . . Robots Corrupted 3 | . . . . 3 Combat Hostiles 1 | . . . . 1 Parts Fried 7 | . . . . 7 Impact Corruptions 8 | . . . . 8 Robots Melted . | . . . . . Combat Hostiles . | . . . . . Parts Melted 3 | . . . 1 2 Heat Transferred 1346 | . 37 680 185 444 Parts Sabotaged . | . . . . . Parts Stolen . | . . . . . Parts Stripped . | . . . . . Power Chain Reactions . | . . . . . Alert | -11 -10 -9 -9 -8 ------- Run | Yrd Mat Mat Min Mat Maximum Alert Level . | . . . . . Low Security (%) 100 | 100 100 100 100 100 Level 1 . | . . . . . Level 2 . | . . . . . Level 3 . | . . . . . Level 4 . | . . . . . Level 5 . | . . . . . High Security . | . . . . . Max Security . | . . . . . Peak Influence 175 | . 45 175 75 57 Initial 2 | . . . 2 . Average 46 | . 14 82 23 19 Influence Increases 893 | . 65 341 85 402 Destroy 0b10 Robot/C 600 | . . 220 60 320 Destroy 0b10 Robot/NC 50 | . 25 15 . 10 Destroy Leader 146 | . 2 62 10 72 Successful Hack 12 | . . 12 . . Disable Machine 15 | . . . 15 . Destroy Structure 70 | . 38 32 . . Influence Decreases 869 | . 65 334 92 378 Entered New Map 5 | . . . 5 . Time Decay 657 | . 65 314 87 191 Lost Part 207 | . . 20 . 187 Squads Dispatched 6 | . . 2 . 4 Investigation 2 | . . 2 . . Extermination . | . . . . . Reinforcement 1 | . . . . 1 Assault . | . . . . . Garrison 3 | . . . . 3 Intercept . | . . . . . Searches Triggered . | . . . . . Construction Impeded . | . . . . . Haulers Reinforced . | . . . . . Active Scanning Responses . | . . . . . Cargo Convoy Interrupts . | . . . . . Stealth | -11 -10 -9 -9 -8 --------- Run | Yrd Mat Mat Min Mat Distress Signals 3 | . . . . 3 Communications Jammed . | . . . . . Distress Signals . | . . . . . Times Spotted 50 | . 3 16 3 28 Peak Tracking Total 8 | . 3 7 3 8 Tactical Retreats 2 | . . . . 2 ECM-based Alert Blocks 2 | . . . . 2 Traps | -11 -10 -9 -9 -8 ------- Run | Yrd Mat Mat Min Mat Traps Triggered 1 | . . 1 . . Indirectly . | . . . . . Trap Hack Attempts . | . . . . . Triggered . | . . . . . Disarmed . | . . . . . Reprogrammed . | . . . . . Reused . | . . . . . Traps Extracted . | . . . . . Installed . | . . . . . Triggered . | . . . . . Machines | -11 -10 -9 -9 -8 ---------- Run | Yrd Mat Mat Min Mat Machines Disabled 1 | . . . 1 . Max in Single Turn 1 | . . . 1 . Machines Repaired . | . . . . . Machines Dismantled . | . . . . . Machines Sabotaged . | . . . . . Overloaded Fab Kills . | . . . . . Hacking | -11 -10 -9 -9 -8 --------- Run | Yrd Mat Mat Min Mat Machines Accessed 9 | . 2 5 . 2 Terminals 4 | . 1 2 . 1 Fabricators . | . . . . . Repair Stations 2 | . 1 1 . . Recycling Units . | . . . . . Scanalyzers 2 | . . 2 . . Garrison Access 1 | . . . . 1 Total Hacks 18 | . 3 12 . 3 Successful 8 | . 1 6 . 1 Failed 10 | . 2 6 . 2 Catastrophic . | . . . . . Database Lockouts . | . . . . . Manual . | . . . . . Terminals 7 | . 1 4 . 2 Fabricators . | . . . . . Repair Stations 5 | . 2 3 . . Recycling Units . | . . . . . Scanalyzers 5 | . . 5 . . Garrison Access 1 | . . . . 1 Terminal Hacks 2 | . . 1 . 1 Record 1 | . . . . 1 Alert Level 1 | . . 1 . . Fabricator Hacks . | . . . . . Repair Station Hacks 3 | . 1 2 . . Scan Component 1 | . . 1 . . Repair 1 | . . 1 . . Refit 1 | . 1 . . . Recycling Unit Hacks . | . . . . . Scanalyzer 3 | . . 3 . . Insert Component 1 | . . 1 . . Analyze 1 | . . 1 . . Retrieve Study 1 | . . 1 . . Garrison Access Hacks . | . . . . . Unauthorized Hacks . | . . . . . Terminals . | . . . . . Fabricators . | . . . . . Repair Stations . | . . . . . Recycling Units . | . . . . . Scanalyzers . | . . . . . Garrison Access . | . . . . . Data Cores Recovered . | . . . . . Used . | . . . . . Hacking Detections 6 | . 1 3 . 2 Full Trace Events 2 | . . 2 . . Feedback Events . | . . . . . Feedback Blocked . | . . . . . Robot Schematics Acquired . | . . . . . Robots Built . | . . . . . Authchips . | . . . . . Time . | . . . . . Total Robot Build Rating . | . . . . . Part Schematics Acquired 1 | . . 1 . . Parts Built . | . . . . . Authchips . | . . . . . Time . | . . . . . Total Part Build Rating . | . . . . . Part Studies Acquired 1 | . . 1 . . Parts Repaired 1 | . . 1 . . Time 26 | . . 26 . . Parts Recycled . | . . . . . Recycled Matter . | . . . . . Retrieved Matter . | . . . . . Retrieved Components . | . . . . . Parts Scanalyzed 1 | . . 1 . . Part Schematics Acquired 1 | . . 1 . . Parts Damaged . | . . . . . Bothacking | -11 -10 -9 -9 -8 ------------ Run | Yrd Mat Mat Min Mat Used RIF Installer . | . . . . . Robots Hacked . | . . . . . Non-combat . | . . . . . Combat . | . . . . . Robot Hacks Applied . | . . . . . Relay Couplers Released . | . . . . . Fabnet Peak Effective % . | . . . . . Robots Rewired . | . . . . . Allies Hacked . | . . . . . Hacks Repelled . | . . . . . Allies | -11 -10 -9 -9 -8 -------- Run | Yrd Mat Mat Min Mat Total Allies . | . . . . . Largest Group . | . . . . . Highest-Rated Group . | . . . . . Highest-Rated Ally . | . . . . . Total Orders . | . . . . . Ally Attacks . | . . . . . Total Damage . | . . . . . Kills . | . . . . . Allies Corrupted . | . . . . . Allies Melted . | . . . . . Intel | -11 -10 -9 -9 -8 ------- Run | Yrd Mat Mat Min Mat Active Infowar (turns) 543 | . . . 94 449 Optics 303 | . . . . 303 Sensors 173 | . . . 94 79 Terrain 112 | . . . . 112 ECM 274 | . . . . 274 Robot Analysis Total . | . . . . . Derelict Logs Recovered . | . . . . . Drone Launches . | . . . . . Drone Recoveries . | . . . . . Exploration | -11 -10 -9 -9 -8 ------------- Run | Yrd Mat Mat Min Mat Turns Passed 1725 | 45 190 740 270 480 Spaces Moved 899 | 37 144 349 145 224 Core 17 | 15 . . . 2 Treads . | . . . . . Legs 784 | 22 144 349 145 124 Wheels 98 | . . . . 98 Hover . | . . . . . Flight . | . . . . . Fastest Speed 50 | 50 120 105 175 80 Average Speed 135 | 91 120 145 175 109 Slowest Speed 200 | 120 120 175 175 200 Overloaded Moves . | . . . . . Propulsion Burnouts . | . . . . . Robots Hopped . | . . . . . Potential Cave-ins . | . . . . . Cave-ins Triggered . | . . . . . Exploration Rate (%) 25 | 4 35 30 39 19 Regions Visited 4 Branch Regions 1 Pre-discovered Areas . | . . . . . Known Exits Taken . | . . . . . Unknown Exits Taken 4 | 1 1 1 1 . Scrap Searched 1 | . . . 1 . Spaces Dug . | . . . . . Terrain Destroyed 67 | . 37 30 . . Melee . | . . . . . Projectile 1 | . . 1 . . AOE 66 | . 37 29 . . Terrain Rammed . | . . . . . Walls Destroyed . | . . . . . Machines Disabled . | . . . . . Actions | -11 -10 -9 -9 -8 --------- Run | Yrd Mat Mat Min Mat Total 1241 | 47 154 529 152 359 Wait 150 | . . 121 . 29 Move 895 | 36 143 348 144 224 Hop . | . . . . . Pick Up 35 | 5 3 13 1 13 Fast Attach 2 | 2 . . . . Attach 25 | 4 . 6 . 15 Detach 2 | . . . . 2 Swap 6 | . 1 3 1 1 Drop 11 | . 1 7 1 2 Fire 77 | . 6 29 4 38 Melee 37 | . . 1 1 35 Ram . | . . . . . Kick 1 | . . 1 . . Crush . | . . . . . Escape Stasis . | . . . . . Rewire . | . . . . . Trap . | . . . . . Miscellaneous . | . . . . . Route ------- -11/Scrapyard -10/Materials -9/Materials -9/Mines -8/Materials History --------- Turn | Location | Event 22 | -11/Scrapyard | Discovered new exit (range 15) 46 | -11/Scrapyard | Entered Materials 218 | -10/Materials | Discovered new exit (range 12) 236 | -10/Materials | Entered another Materials area 236 | -9/Materials | Evolved 2 slots: Utility x1, Weapon x1 916 | -9/Materials | Repaired Lgt. Armor Plating 960 | -9/Materials | Discovered new exit (range 7) 976 | -9/Materials | Entered Mines 1066 | -9/Mines | Assembled infested the area 1071 | -9/Mines | Assisted by a Guerilla fighting off Assembled 1145 | -9/Mines | Found a damaged Exp. Sensor Array with a note attached 1149 | -9/Mines | Found Prototype Device 1150 | -9/Mines | Identified Exp. Sensor Array 1176 | -9/Mines | Discovered new exit (range 10) 1210 | -9/Mines | Build established: Scavenger-Mutant 1246 | -9/Mines | Entered Materials 1246 | -8/Materials | Evolved 2 slots: Power x1, Utility x1 1338 | -8/Materials | Garrison activated, responded to threat 1425 | -8/Materials | Lost 9 parts (2p1n4u2w) 1622 | -8/Materials | Lost 4 parts (1p1n1u1w) 1697 | -8/Materials | Core integrity fell below 50% 1717 | -8/Materials | Core integrity fell below 20% 1726 | -8/Materials | Destroyed by S-10 Pest with Light Assault Rifle Last Messages --------------- 01709_ R-06 Scavenger collects Flight Unit. 01711_ Critical hit (Burn: +37). 01712_ Katana follow-up attack on S-10 Pest. 01712_ S-10 Pest destroyed. 01712_ K-01 Serf collects debris. 01714_ Critical hit (Burn: +37). 01714_ R-06 Scavenger collects Flight Unit. 01714_ Acquired 13 matter. 01717_ Imp. Terrain Scanner destroyed. 01717_ ECM Suite destroyed. 01718_ R-06 Scavenger collects Flight Unit. 01719_ Katana destroyed. 01721_ Katana follow-up attack on Y-45 Defender. 01722_ Adv. Heat Sink destroyed. 01723_ R-06 Scavenger destroyed. 01724_ R-06 Scavenger collects Com. Wheel. 01724_ Y-45 Defender destroyed. 01725_ Visual Processing Unit destroyed. 01725_ R-06 Scavenger collects Lgt. Deuterium Engine. Map ----- +----------------------------------------------------+ | ???????????#########?????#?# #???????????????????? | | ????????????# !!/#???????# #??#????????????????? | | ?????????#??# ! /#???????# #???????????????????? | | ???????#????# #???????# #???????????????????? | | ??????????#?# #???????# ########????????????? | | ????????????# #???????# # """] #????????????? | | ???#????????# #???????# # """ #????????????? | | ?????????#??####+########### # """ #????????????? | | ???????????????# / #????????????? | | ???????????????# ######### # ! #????????????? | | ?????????#####?# ######### # #??#?????????? | | ?????????# " #?# # ## ########????????????? | | ?????????#"G"#?# # ## #??????#????????????? | | ?????#####" "### #! ! ## #???????????????????? | | ?????# # ! ## #???????????????????? | | ?????# # ## #?#?#????#??????????? | | ?????# "T" %+%% !## #???????????????????? | | ?????# ######### #???????????????????? | | ?????# ""## ##+####????????????????? | | ?????### Y"#? # #????????????????? | | ######## ""## # ###?#????????????? | | # # ###?# ## #????????????????? | | # # #???# ## #?????#??????????? | | #""" # """" ##### ## #????????????????? | | #""" # % """" g =! s#* #????????????????? | | #""" + """" w =%= @/% #????????????????? | | # # gr %#! #????????????????? | | ##+#####! % a r # #????????????????? | | ?# % %## ### Y %# #????????????????? | | ?####### ## #?# # #????????????????? | | ???????# ## #?# # #?????????#??????? | | ???????# ## #?# #######????????????????? | | ???????# ## #?# / ??????????? | | ???????# ## #?#+###############??????????????? | | ########+# #?# #????????????????????? | | "T" # ####?# #????????????????????? | | # #????# #?????? ?????????????? | | # #????# #????????????????????? | | ! + #????###########????????????????????? | | ! # #???????????????????????????????????? | | !* # #???????? ??????????????????????????? | | [! # #?????#??????????? ?????????????????? | | !!%=![ # #???????????????????????????????????? | | ## ####### #????#??????? ??????????????????????? | | ?##??????# #????????????? ?????????????????????? | | ?????????# #???????????????????????????????????? | | ?????????# #???????????????????????????????????? | | ?????????# #???????????????????????????????????? | | ?????????# #???????????????????????????????????? | | ?????????# #???????????????????????????????????? | +----------------------------------------------------+ Best States ------------- Heat Dissipation 60 Energy Generation 21 Energy Capacity 445 Matter Stores 300 Matter Capacity 300 Sight Range 18 Robot Scan Range 20 Terrain Scan Range 16 Terrain Scan Density 10 ECM Strength 1 Armor Coverage 300 Evasion (%) 55 Particle Charging 15 Item Schematics ----------------- Lgt. Ion Engine | -9/Materials | Scanalyzed Robot Schematics ------------------ None Fabricated ------------ Nothing Repaired ---------- Lgt. Armor Plating | 26% | -9/Materials Studied --------- Aluminum Leg | -9/Materials | Hacked Alien Tech Used ----------------- None Achievements -------------- Item+ Overwhelming Resistances Are Futile Well Done Challenges ------------ None Game ------ Seed IntegrityBeamRocket Manual? 0 Play Time 00:33:22 Cumulative 4.9 hours Start 2026.03.09 @ 13:06:27 End 2026.03.09 @ 13:37:03 Sessions 1 Manual Loads 0 Difficulty Rogue Special Mode None Game No. 5 Rogue 5 Adventurer 0 Explorer 0 Win Type - Total 0 Types 0/0/0/0/0/0/0/0/0/0 Lore% 2 Gallery% 8 Achievement% 8 Wizard Run 0 Options --------- Layout 2 ASCII 0 Keyboard 0 Movement Mouse Keybinds 0 Fullscreen 2 Font 24/Smallcaps Map View 50x44 Zoom Use 0% Tactical HUD 1 Map Filters NONE Filters NONE Steam 1 RUN: 954cba11-a444-4ee3-b8a6-ed235a133b20